Cogmind - Beta 15 @@@ ROGUE MODE // 2025.07.07 @ 16:21:02 Player: Skysub Result: Destroyed by PA-YJI(R) with Subdweller Machine Gun Performance ------------- Evolutions (0) 0 Regions Visited (2) 400 Robots Destroyed (35) 175 Value Destroyed (509) 509 Prototype IDs (11) 220 Alien Tech Used (0) 0 Bonus (0) 0 TOTAL SCORE: 1304 Bonus ------- None Cogmind --------- Core Integrity 0/250 Matter 43/300 Energy 100/100 System Corruption 1% Temperature Cool (0) Movement Core (400) Ox7 Location -10/Subcaves Parts ------- > --- POWER (1) -------- (None) > --- PROPULSION (2) --- (None) > --- UTILITY (2) ------ Large Storage Unit > --- WEAPON (2) ------- Medium Laser > --- INVENTORY (15) --- Ion Engine Wheel Small Storage Unit Structural Scanner Tower Shield Grenade Launcher Rocket Launcher Rocket Launcher Mining Laser Peak State ------------ > --- POWER ------------ Ion Engine > --- PROPULSION ------- Light Treads Light Treads > --- UTILITY ---------- Large Storage Unit Medium Armor Plating > --- WEAPON ----------- Light Assault Rifle Grenade Launcher > --- INVENTORY -------- Ion Engine Wheel Small Storage Unit Structural Scanner Tower Shield Medium Laser Rocket Launcher Rocket Launcher Mining Laser [Rating: 11] Favorites ----------- Power Ion Engine Engine Ion Engine Propulsion Light Treads Treads Light Treads Utility Large Storage Unit Device Structural Scanner Storage Large Storage Unit Protection Medium Armor Plating Weapon Light Assault Rifle Energy Gun Medium Laser Ballistic Gun Light Assault Rifle Launcher Rocket Launcher Special Weapon Mining Laser Build | -11 -10 -10 ------- Run | Yrd Mat Sub Slots Evolved . | . . . Power . | . . . Propulsion . | . . . Utility . | . . . Weapon . | . . . Parts Attached 13 | 6 4 3 Power 1 | 1 . . Engine 1 | 1 . . Core . | . . . Reactor . | . . . Propulsion 2 | 2 . . Treads 2 | 2 . . Leg . | . . . Wheel . | . . . Hover . | . . . Flight . | . . . Utility 5 | 1 3 1 Device 1 | . . 1 Storage 2 | 1 1 . Processor . | . . . Hackware . | . . . Protection 2 | . 2 . Artifact . | . . . Weapon 5 | 2 1 2 Energy Gun 1 | 1 . . Energy Cannon . | . . . Ballistic Gun 1 | 1 . . Ballistic Cannon . | . . . Launcher 2 | . 1 1 Special Weapon 1 | . . 1 Impact Weapon . | . . . Slashing Weapon . | . . . Piercing Weapon . | . . . Special Melee Weapon . | . . . Unidentified Prototypes . | . . . Parts Lost 6 | . 1 5 Power 1 | . . 1 Propulsion 2 | . . 2 Utility 2 | . 1 1 Weapon 1 | . . 1 Highest Loss Streak 5 | . 1 5 To Critical Strikes 1 | . . 1 Average Backups 6 | 1 7 8 Power . | . 1 1 Propulsion . | . 1 1 Utility 1 | . 1 2 Weapon 2 | . 3 4 Tool/Special . | . . . Unused Backups 4 | . . 4 Power 1 | . . 1 Propulsion 1 | . . 1 Utility 1 | . . 1 Weapon 1 | . . 1 Tool/Special . | . . . Average Slot Usage (%) 95 | . 95 97 Engine 13 | . 14 13 Treads 27 | . 28 27 Device 3 | . . 8 Storage 14 | . 14 14 Protection 7 | . 9 5 Energy Gun 1 | . 1 1 Ballistic Gun 13 | . 14 13 Launcher 11 | . 12 10 Peak Build Rating 11 | 6 10 11 Average Rating 8 | 5 8 9 On Entrance 5 | . 6 9 Naked Turns . | . . . Heaviest Build 37 | 13 37 37 Greatest Support 40 | 40 40 40 Greatest Overweight (x) . | . . . Average Overweight (x) . | . . . Largest Inventory Capacity 15 | 8 15 15 Average Capacity 12 | 7 12 15 Most Carried 10 | 2 9 10 Average Carried 6 | 1 7 9 Final Capacity 15 | 8 15 15 Final Carried 10 | 2 8 10 Class Distribution -------------------- 100% | Mutant Dominant Class ---------------- Mutant | -10/Materials Mutant | -10/Subcaves Resources | -11 -10 -10 ----------- Run | Yrd Mat Sub Matter Collected 435 | 303 132 . Remotely . | . . . Salvage Created 634 | 314 253 67 Parts 60 | 25 31 4 Haulers Intercepted . | . . . Recyclers Shooed 2 | . 2 . Parts Field Recycled . | . . . Retrieved Matter . | . . . Parts Self-Destructed 5 | . . 5 Prevented . | . . . Kills | -11 -10 -10 ------- Run | Yrd Mat Sub Combat Hostiles Destroyed 16 | . 11 5 Guns 4 | . 2 2 AOE 12 | . 9 3 Classes Destroyed 9 | 3 4 2 Worker 4 | 2 2 . Builder 2 | . 2 . Tunneler 9 | 9 . . Recycler 2 | 1 1 . Watcher 2 | . 2 . Swarmer 9 | . 6 3 Grunt 5 | . 5 . Sentry 1 | . . 1 Subdweller 1 | . . 1 Best Kill Streak 4 | 3 4 4 Combat Bots Only 4 | . 4 4 Max Kills in Single Turn 3 | 1 3 1 Gunslinging . | . . . Exploded 2 | . 2 1 Melee . | . . . Uniques/NPCs Destroyed . | . . . Combat | -11 -10 -10 -------- Run | Yrd Mat Sub Hostile Shots Fired 97 | . 42 55 Missed 31 | . 17 14 Hits 66 | . 25 41 Projectile 66 | . 25 41 Critical Strikes 1 | . . 1 Damage Taken 1162 | . 453 709 Core 262 | . 87 175 Absorbed by Shields . | . . . Core Remaining (%) 100 | 100 . . Volleys Fired 114 | 43 38 33 Largest 2 | 2 2 2 Hottest 100 | 70 53 100 Shots Fired 188 | 85 50 53 Gun 158 | 85 35 38 Cannon . | . . . Launcher 24 | . 15 9 Special 6 | . . 6 Kinetic 98 | 43 35 20 Thermal 66 | 42 . 24 Explosive 24 | . 15 9 Electromagnetic . | . . . Robot Hit Streak 13 | 9 6 13 Robot Miss Streak 3 | 3 3 2 Penetration Max . | . . . Secondary Targets . | . . . Shots Hit Robots 117 | 50 29 38 Core Hits 60 | 18 28 14 Critical Kills . | . . . Critical Parts Destroyed . | . . . Critical Strikes 6 | 2 . 4 Burn 6 | 2 . 4 Melee Attacks . | . . . Impact . | . . . Slashing . | . . . Piercing . | . . . Sneak Attacks . | . . . Combat Hostiles . | . . . Follow-up Attacks . | . . . Damage Inflicted 2352 | 495 1211 646 Guns 1025 | 495 184 346 Cannons . | . . . Explosions 1327 | . 1027 300 Melee . | . . . Ramming . | . . . Kinetic 491 | 173 184 134 Thermal 534 | 322 . 212 Explosive 1285 | . 985 300 Electromagnetic 42 | . 42 . Impact . | . . . Slashing . | . . . Piercing . | . . . Highest Corruption 1 | . 1 1 Average Corruption 1 | . 1 1 Corruption Purged . | . . . Corruption Blocked . | . . . Effects 8 | . 1 7 Message Errors 1 | . 1 . Matter Fused 2 | . . 2 Heat Flow Errors 2 | . . 2 Energy Discharges 2 | . . 2 Data Loss (minor) 1 | . . 1 Overload Shots . | . . . Overflow Damage 69 | . 41 28 Projectiles . | . . . Explosions 69 | . 41 28 Melee . | . . . Knockbacks . | . . . Impact . | . . . Kinetic . | . . . Secondary . | . . . Self-Inflicted Damage 171 | . 171 . Shots 6 | . 6 . Rammed . | . . . Targets Rammed . | . . . Kicked . | . . . Crushed . | . . . Highest Temperature 310 | 310 31 165 Average Temperature 68 | 90 11 65 Received Heat Transfer 180 | . 108 72 Effects 2 | 2 . . Interference 2 | 2 . . Siege Activations . | . . . Martial Activations . | . . . Shielding Activations . | . . . Robots Disrupted . | . . . Combat Hostiles . | . . . Robots Corrupted . | . . . Combat Hostiles . | . . . Parts Fried . | . . . Impact Corruptions . | . . . Robots Melted . | . . . Combat Hostiles . | . . . Parts Melted 2 | 2 . . Heat Transferred 2035 | 1110 . 925 Parts Sabotaged . | . . . Parts Stolen . | . . . Parts Stripped . | . . . Power Chain Reactions . | . . . Alert | -11 -10 -10 ------- Run | Yrd Mat Sub Maximum Alert Level 1 | . 1 . Low Security (%) 98 | 100 97 . Level 1 1 | . 2 . Level 2 . | . . . Level 3 . | . . . Level 4 . | . . . Level 5 . | . . . High Security . | . . . Max Security . | . . . Peak Influence 215 | 10 215 . Initial . | . . . Average 54 | . 89 . Influence Increases 749 | 60 599 90 Destroy 0b10 Robot/C 300 | . 220 80 Destroy 0b10 Robot/NC 95 | 60 35 . Destroy Leader 64 | . 54 10 Successful Hack 62 | . 62 . Select Force Hacks 30 | . 30 . Disable Machine 45 | . 45 . Destroy Structure 123 | . 123 . Lose Combat Pursuer 30 | . 30 . Influence Decreases 749 | 60 390 299 Entered New Map 101 | . . 101 Time Decay 634 | 60 380 194 Lost Part 14 | . 10 4 Squads Dispatched 2 | . 2 . Investigation 2 | . 2 . Extermination . | . . . Reinforcement . | . . . Assault . | . . . Garrison . | . . . Intercept . | . . . Searches Triggered . | . . . Construction Impeded . | . . . Haulers Reinforced . | . . . Active Scanning Responses . | . . . Cargo Convoy Interrupts . | . . . Stealth | -11 -10 -10 --------- Run | Yrd Mat Sub Distress Signals 2 | . 2 . Communications Jammed . | . . . Distress Signals . | . . . Times Spotted 22 | . 15 7 Peak Tracking Total 5 | . 5 4 Tactical Retreats 1 | . 1 . Traps | -11 -10 -10 ------- Run | Yrd Mat Sub Traps Triggered 1 | . 1 . Indirectly . | . . . Trap Hack Attempts . | . . . Triggered . | . . . Disarmed . | . . . Reprogrammed . | . . . Reused . | . . . Traps Extracted . | . . . Installed . | . . . Triggered . | . . . Machines | -11 -10 -10 ---------- Run | Yrd Mat Sub Machines Disabled 4 | . 3 1 Max in Single Turn 2 | . 2 1 Machines Repaired . | . . . Machines Dismantled . | . . . Machines Sabotaged . | . . . Overloaded Fab Kills . | . . . Hacking | -11 -10 -10 --------- Run | Yrd Mat Sub Machines Accessed 7 | . 6 1 Terminals 5 | . 5 . Fabricators . | . . . Repair Stations . | . . . Recycling Units 1 | . 1 . Scanalyzers . | . . . Garrison Access . | . . . Total Hacks 22 | . 21 1 Successful 16 | . 15 1 Failed 6 | . 6 . Catastrophic . | . . . Database Lockouts . | . . . Manual 14 | . 14 . Terminals 19 | . 19 . Fabricators . | . . . Repair Stations . | . . . Recycling Units 2 | . 2 . Scanalyzers . | . . . Garrison Access . | . . . Terminal Hacks 4 | . 3 1 Robot Analysis 1 | . 1 . Zone Layout 2 | . 2 . Proto ID Catalog 1 | . . 1 Fabricator Hacks . | . . . Repair Station Hacks . | . . . Recycling Unit Hacks 1 | . 1 . Report Inventory 1 | . 1 . Scanalyzer . | . . . Garrison Access Hacks . | . . . Unauthorized Hacks 11 | . 11 . Terminals 10 | . 10 . Botnet 5 | . 5 . Skim 5 | . 5 . Fabricators . | . . . Repair Stations . | . . . Recycling Units 1 | . 1 . Tunnel 1 | . 1 . Scanalyzers . | . . . Garrison Access . | . . . Data Cores Recovered . | . . . Used . | . . . Hacking Detections 4 | . 4 . Full Trace Events . | . . . Feedback Events . | . . . Feedback Blocked . | . . . Robot Schematics Acquired . | . . . Robots Built . | . . . Authchips . | . . . Time . | . . . Total Robot Build Rating . | . . . Part Schematics Acquired . | . . . Parts Built . | . . . Authchips . | . . . Time . | . . . Total Part Build Rating . | . . . Parts Repaired . | . . . Time . | . . . Parts Recycled . | . . . Recycled Matter . | . . . Retrieved Matter . | . . . Retrieved Components . | . . . Parts Scanalyzed . | . . . Part Schematics Acquired . | . . . Parts Damaged . | . . . Bothacking | -11 -10 -10 ------------ Run | Yrd Mat Sub Used RIF Installer . | . . . Robots Hacked . | . . . Non-combat . | . . . Combat . | . . . Robot Hacks Applied . | . . . Relay Couplers Released . | . . . Fabnet Peak Effective % . | . . . Robots Rewired . | . . . Allies Hacked . | . . . Hacks Repelled . | . . . Allies | -11 -10 -10 -------- Run | Yrd Mat Sub Total Allies . | . . . Largest Group . | . . . Highest-Rated Group . | . . . Highest-Rated Ally . | . . . Total Orders . | . . . Ally Attacks . | . . . Total Damage . | . . . Kills . | . . . Allies Corrupted . | . . . Allies Melted . | . . . Intel | -11 -10 -10 ------- Run | Yrd Mat Sub Active Infowar (turns) 335 | . . 335 Structural 335 | . . 335 Robot Analysis Total 1 | . 1 . Derelict Logs Recovered . | . . . Drone Launches . | . . . Drone Recoveries . | . . . Exploration | -11 -10 -10 ------------- Run | Yrd Mat Sub Turns Passed 2016 | 567 887 562 Spaces Moved 984 | 272 429 283 Core 4 | 4 . . Treads 980 | 268 429 283 Legs . | . . . Wheels . | . . . Hover . | . . . Flight . | . . . Fastest Speed 50 | 50 160 160 Average Speed 159 | 158 160 160 Slowest Speed 160 | 160 160 160 Overloaded Moves . | . . . Propulsion Burnouts . | . . . Robots Hopped . | . . . Potential Cave-ins . | . . . Cave-ins Triggered . | . . . Exploration Rate (%) 34 | 16 63 24 Regions Visited 2 Branch Regions 1 Pre-discovered Areas 1 | . 1 . Known Exits Taken 1 | . 1 . Unknown Exits Taken 1 | 1 . . Scrap Searched . | . . . Spaces Dug 15 | . 15 . Terrain Destroyed 150 | . 123 27 Melee . | . . . Projectile . | . . . AOE 150 | . 123 27 Terrain Rammed . | . . . Walls Destroyed . | . . . Machines Disabled . | . . . Actions | -11 -10 -10 --------- Run | Yrd Mat Sub Total 1243 | 329 586 328 Wait 122 | 7 109 6 Move 982 | 271 428 283 Hop . | . . . Pick Up 9 | 2 6 1 Fast Attach 8 | 6 2 . Attach 1 | . 1 . Detach 1 | . 1 . Swap 6 | . 1 5 Drop . | . . . Fire 114 | 43 38 33 Melee . | . . . Ram . | . . . Kick . | . . . Crush . | . . . Escape Stasis . | . . . Rewire . | . . . Trap . | . . . Miscellaneous . | . . . Route ------- -11/Scrapyard -10/Materials (discovered 6 exits: *Mat x3 / *Min x2 / *Sub) -10/Subcaves (discovered 1 exit: [*Scr]) History --------- Turn | Location | Event 6 | -11/Scrapyard | Discovered new exit (range 15) 568 | -11/Scrapyard | Entered Materials 569 | -10/Materials | Build established: Mutant 757 | -10/Materials | Discovered new exit (range 21) 1163 | -10/Materials | Discovered new exit (range 12) 1247 | -10/Materials | Learned location of 1 exit from Storage 1279 | -10/Materials | Learned Storage stockpile data 1302 | -10/Materials | Learned 4 Recycling zone layouts 1317 | -10/Materials | Learned 4 Recycling zone layouts 1323 | -10/Materials | Identified exit to Subcaves 1323 | -10/Materials | Identified exit to Mines 1324 | -10/Materials | Identified exit to Materials 1326 | -10/Materials | Learned location of 3 exits from Materials 1364 | -10/Materials | Loaded intel: 11 trap records 1455 | -10/Materials | Entered Subcaves 1456 | -10/Subcaves | Approached by a straggling Scientist 1511 | -10/Subcaves | Visited 4L-MR0's lab 1545 | -10/Subcaves | Found Tower Shield 1787 | -10/Subcaves | Core integrity fell below 50% 1931 | -10/Subcaves | Scientist uncovered a shortcut to Scraptown 2012 | -10/Subcaves | Core integrity fell below 20% 2017 | -10/Subcaves | Destroyed by PA-YJI(R) with Subdweller Machine Gun Last Messages --------------- 01893_ System corrupted: Energy discharge (-95). PT-5FG(c): "We're getting close, I can feel it." 01930_ System corrupted: Component data lost. 01931_ PT-5FG(c): "Hah, right again, there it is!" 01934_ PT-5FG(c) exits level. 01975_ FH-GCU(R) suffers critical hit (Burn). 01979_ Ion Engine destroyed. 01980_ FH-GCU(R) destroyed. 01986_ PA-YJI(R) suffers critical hit (Burn). 01987_ PA-YJI(R) affixes Scrap Shield Fragment to Scrap Shield. 01990_ Med. Armor Plating destroyed. 01996_ Subatomizers dissect the Sub. Laser. 01997_ V8-0CI(R) suffers critical hit (Burn). 01998_ Critical hit (Destroy). 01998_ Lgt. Treads destroyed. 02002_ Lgt. Assault Rifle destroyed. 02003_ V8-0CI(R) destroyed. 02005_ Lgt. Treads destroyed. 02008_ Subatomizers dissect the Sub. Laser. 02013_ PA-YJI(R) suffers critical hit (Burn). Map ----- +----------------------------------------------------+ | ##???????????????# # #???????????? | | ## ##???????????# ## #???????????? | | ###### ###???????????## ###### #???????????? | | ##########????????????#####????# #???????????? | | #????####??????????????????????# #???????????? | | #?????????????????????????????## #???????????? | | #?????????????????????????????# #???????????? | | #?????????????????????????????# #???????????? | | ??????????????????????????????## ##??????????? | | ???????????????????????????????### #??????????? | | ?????????????????????????????????## #??????????? | | ?????????????????????????????????## ##??????????? | | ????????????????????????????????## #???????????? | | ???????????????????????????????## #???????????? | | ???????????????????????????????# ##??????????? | | ???????????????????????????????# #??????????? | | ???????????????????????????????# #??????????? | | ???????????????????????????????# ## #??????????? | | ???????????????????????????????## #?##??????????? | | ??????????????????????####??????# ##????????????? | | ??????????????????????# #??###?# #????????????? | | ?????????????????????## #?## ### #????????????? | | ?????????????????????# ### ## ##????????????? | | ?????????????????#???# ##????????????? | | ???????????# " ## ## ##???????????? | | ????????????# @ #???????????? | | ?????????????# "" ! #???????????? | | ??????????????# " # [%R## ##???????????? | | ??????????????????# %=### ####????????????? | | ??????????????????## #??# ##???????????????? | | ???????????????????#"#???# ##????????????????? | | ??????????????????""#????## ##????????????????? | | ????????????????? ??????## ###??????????????? | | ????????????????? ????????## ####???????????? | | ????????????????? ??????????## > #???????????? | | ?????????????????????????????## #???????????? | | ??????????????????????????????## ##???????????? | | ???????????????????????????????# ##????????????? | | ??????????????????????????????## #?????????????? | | ??????????????????????????????# #?????????????? | | ??????????????????????????????# #?????????????? | | ??????????????????????????????## #????????????? | | ?????????????????????????????? #???????????? | | ????????????????????????????? #??????????? | | ???????????????????????????? #??????????? | | ?????????????????????????? ## #??????????? | | ????????????????????????? ?## #??????????? | | ???????????????????????? ???# ## ##??????????? | | ???????????????????????# ##???? #?##???????????? | | ???????????????????????#??????? ???????????????? | +----------------------------------------------------+ Best States ------------- Heat Dissipation 25 Energy Generation 10 Energy Capacity 250 Matter Stores 300 Matter Capacity 300 Sight Range 16 Terrain Scan Density 10 Armor Coverage 225 Evasion (%) 40 Recoil Reduction 2 Item Schematics ----------------- None Robot Schematics ------------------ None Fabricated ------------ Nothing Repaired ---------- Nothing Alien Tech Used ----------------- None Achievements -------------- None Challenges ------------ None Game ------ Seed MappingSuperdenseKit Manual? 0 Play Time 00:10:19 Cumulative 141.7 hours Start 2025.07.07 @ 16:08:25 End 2025.07.07 @ 16:21:02 Sessions 1 Manual Loads 0 Difficulty Rogue Special Mode None Game No. 155 Rogue 155 Adventurer 0 Explorer 0 Win Type - Total 3 Types 1/0/0/1/0/0/0/0/0/1 Lore% 63 Gallery% 59 Achievement% 52 Wizard Run 0 Options --------- Layout 1 ASCII 0 Keyboard 1 Movement Numpad Keybinds 0 Fullscreen 1 Font 32/SmallcapsGlow Map View 77x35 Zoom Use 0% Tactical HUD 1 Map Filters NONE Filters NONE Steam 1 RUN: a659a512-7ad1-4181-bb00-d5c6a47dfb8f